fUSD/lending_fUSD_20250804
["ID","MTS","AMOUNT","RATE_DAILY","PERIOD"]
[377208532,1754290393851,-1090.73,0.00047945,120]
[377208533,1754290393861,-864.15,0.00047945,120]
[377208534,1754290393871,-400.0,0.00047945,120]
[377208535,1754290393880,-711.51,0.00047945,120]
[377208536,1754290393890,-456.13,0.00047945,120]
[377208537,1754290393901,-400.0,0.00047945,120]
[377208538,1754290393912,-992.05,0.00047945,120]
[377208539,1754290393921,-873.07,0.00047945,120]
[377208540,1754290393936,-400.0,0.00047945,120]
[377208541,1754290393946,-400.0,0.00047945,120]
[377208542,1754290393955,-803.61,0.00047945,120]
[377208543,1754290393966,-835.16,0.00047945,120]
[377208544,1754290393976,-529.07,0.00047945,120]
[377208545,1754290393986,-510.59,0.00047945,120]
[377208546,1754290393996,-1241.9,0.00047945,120]
[377208547,1754290394006,-1938.01,0.00047945,120]
[377208548,1754290394016,-931.63,0.00047945,120]
[377208549,1754290394026,-1886.61,0.00047945,120]
[377208550,1754290394036,-1288.92,0.00047945,120]
[377208551,1754290394046,-1414.91,0.00047945,120]
[377208552,1754290394056,-647.76,0.00047945,120]
[377208553,1754290394066,-651.67,0.00047945,120]
[377208554,1754290394076,-400.0,0.00047945,120]
[377208555,1754290394086,-480.17,0.00047945,120]
[377208556,1754290394096,-739.24,0.00047945,120]
[377208557,1754290394106,-470.07,0.00047945,120]
[377208558,1754290394115,-415.44,0.00047945,120]
[377208559,1754290394126,-1148.6,0.00047945,120]
[377208560,1754290394135,-400.0,0.00047945,120]
[377208561,1754290394146,-582.45,0.00047945,120]
[377208562,1754290394156,-400.0,0.00047945,120]
[377208563,1754290394166,-6194.75,0.00047945,120]
[377208564,1754290394176,-1126.3,0.00047945,120]
[377208565,1754290394187,-460.0,0.00047945,120]
[377208566,1754290394196,-442.19,0.00047945,120]
[377208567,1754290394352,-400.0,0.00047945,7]
[377208568,1754290394364,-1252.69,0.00047945,120]
[377208569,1754290394375,-550.08,0.00047945,120]
[377208570,1754290394385,-405.89,0.00047945,120]
[377208571,1754290394395,-400.0,0.00047945,120]
[377208572,1754290394406,-3027.52,0.00047945,120]
[377208573,1754290394415,-400.0,0.00047945,120]
[377208574,1754290394425,-413.99,0.00047945,120]
[377208575,1754290394435,-1732.1,0.00047945,120]
[377208576,1754290394444,-400.0,0.00047945,120]
[377208577,1754290394454,-400.0,0.00047945,120]
[377208578,1754290394463,-400.0,0.00047945,120]
[377208579,1754290394472,-400.0,0.00047945,120]
[377208580,1754290394482,-400.0,0.00047945,120]
[377208581,1754290394491,-1473.85,0.00047945,120]
[377208582,1754290394501,-482.36743592,0.00047945,120]
[377208583,1754290394511,-400.0,0.00047945,120]
[377208584,1754290394520,-457.13,0.00047945,120]
[377208585,1754290394530,-2588.78,0.00047945,120]
[377208586,1754290394540,-1796.48,0.00047945,120]
[377208587,1754290394550,-527.16,0.00047945,120]
[377208588,1754290394559,-520.0,0.00047945,120]
[377208589,1754290394568,-1690.27,0.00047945,120]
[377208590,1754290394578,-400.0,0.00047945,120]
[377208591,1754290394587,-400.0,0.00047945,120]
[377208592,1754290394596,-653.3,0.00047945,120]
[377208593,1754290394605,-1266.42,0.00047945,120]
[377208594,1754290394614,-1195.08,0.00047945,120]
[377208595,1754290394623,-1579.08,0.00047945,120]
[377208596,1754290394632,-400.0,0.00047945,120]
[377208597,1754290394642,-400.0,0.00047945,120]
[377208598,1754290394652,-1395.13,0.00047945,120]
[377208599,1754290394662,-400.0,0.00047945,120]
[377208600,1754290394671,-432.6,0.00047945,120]
[377208601,1754290394682,-472.09,0.00047945,120]
[377208602,1754290394691,-1000.17,0.00047945,120]
[377208603,1754290394702,-599.49,0.00047945,120]
[377208604,1754290394713,-538.07,0.00047945,120]
[377208605,1754290394722,-504.36,0.00047945,120]
[377208606,1754290394732,-400.0,0.00047945,120]
[377208607,1754290394743,-500.0,0.00047945,120]
[377208608,1754290394753,-500.0,0.00047945,120]
[377208609,1754290394762,-471.57614613,0.00047945,120]
[377208610,1754290394772,-549.51,0.00047945,120]
[377208611,1754290394788,-500.0,0.00047945,120]
[377208612,1754290394797,-4817.73,0.00047945,120]
[377208613,1754290394807,-500.0,0.00047945,120]
[377208614,1754290394817,-500.0,0.00047945,120]
[377208615,1754290394827,-1319.08,0.00047945,120]
[377208616,1754290394836,-500.0,0.00047945,120]
[377208617,1754290394846,-500.0,0.00047945,120]
[377208618,1754290394863,-2387.84,0.00047945,120]
[377208619,1754290394873,-400.0,0.00047945,120]
[377208620,1754290394882,-500.0,0.00047945,120]
[377208621,1754290394892,-500.0,0.00047945,120]
[377208622,1754290394901,-500.0,0.00047945,120]
[377208623,1754290394911,-500.0,0.00047945,120]
[377208624,1754290394921,-246.68,0.00047945,120]
[377208625,1754290394930,-5079.36,0.00047945,120]
[377208626,1754290394940,-400.0,0.00047945,120]
[377208627,1754290394950,-400.0,0.00047945,120]
[377208628,1754290394959,-400.0,0.00047945,120]
[377208629,1754290394968,-400.0,0.00047945,120]
[377208630,1754290394978,-1680.69,0.00047945,120]
[377208631,1754290394992,-1295.48,0.00047945,120]
[377208632,1754290395003,-400.0,0.00047945,120]
[377208633,1754290395013,-400.0,0.00047945,120]
[377208634,1754290395023,-435.74,0.00047945,120]
[377208635,1754290395032,-400.0,0.00047945,120]
[377208636,1754290395042,-1121.24,0.00047945,120]
[377208637,1754290395052,-526.22,0.00047945,120]
[377208638,1754290395062,-705.04,0.00047945,120]
[377208639,1754290395071,-400.0,0.00047945,120]
[377208640,1754290395081,-734.38,0.00047945,120]
[377208641,1754290395090,-2936.94,0.00047945,120]
[377208642,1754290395100,-400.0,0.00047945,120]
[377208643,1754290395109,-867.58,0.00047945,120]
[377208644,1754290395119,-926.06,0.00047945,120]
[377208645,1754290395128,-1130.87,0.00047945,120]
[377208646,1754290395138,-465.98,0.00047945,120]
[377208647,1754290395147,-400.0,0.00047945,120]
[377208648,1754290395158,-1703.37,0.00047945,120]
[377208649,1754290395167,-400.0,0.00047945,120]
[377208650,1754290395176,-1231.39,0.00047945,120]
[377208651,1754290395186,-221.97776373,0.00047945,120]
[377208652,1754290395195,-704.05,0.00047945,120]
[377208653,1754290395205,-400.0,0.00047945,120]
[377208654,1754290395214,-400.0,0.00047945,120]
[377208655,1754290395223,-487.85,0.00047945,120]
[377208656,1754290395233,-400.0,0.00047945,120]
[377208657,1754290395244,-730.78,0.00047945,120]
[377208658,1754290395253,-1356.87,0.00047945,120]
[377208659,1754290395263,-500.81,0.00047945,120]
[377208660,1754290395271,-400.0,0.00047945,120]
[377208661,1754290395281,-947.6,0.00047945,120]
[377208662,1754290395290,-514.96160894,0.00047945,120]
[377208663,1754290395300,-400.0,0.00047945,120]
[377208664,1754290395309,-400.0,0.00047945,120]
[377208665,1754290395319,-1287.13,0.00047945,120]
[377208666,1754290395328,-400.0,0.00047945,120]
[377208667,1754290395337,-434.42,0.00047945,120]
[377208668,1754290395347,-522.67499452,0.00047945,120]
[377208669,1754290395357,-1890.35,0.00047945,120]
[377208670,1754290395366,-896.46,0.00047945,120]
[377208671,1754290395375,-1067.68,0.00047945,120]
[377208672,1754290395385,-400.0,0.00047945,120]
[377208673,1754290395394,-841.55,0.00047945,120]
[377208674,1754290395404,-434.38,0.00047945,120]
[377208675,1754290395413,-400.0,0.00047945,120]
[377208676,1754290395423,-400.0,0.00047945,120]
[377208677,1754290395432,-987.56,0.00047945,120]
[377208678,1754290395442,-530.43,0.00047945,120]
[377208679,1754290395451,-469.62,0.00047945,120]
[377208680,1754290395461,-810.88,0.00047945,120]
[377208681,1754290395470,-400.0,0.00047945,120]
[377208682,1754290395479,-915.69,0.00047945,120]
[377208683,1754290395489,-1501.77,0.00047945,120]
[377208684,1754290395499,-1058.36,0.00047945,120]
[377208685,1754290395509,-935.48,0.00047945,120]
[377208686,1754290395518,-1101.74,0.00047945,120]
[377208687,1754290395527,-400.0,0.00047945,120]
[377208688,1754290395536,-1159.69,0.00047945,120]
[377208689,1754290395546,-400.0,0.00047945,120]
[377208690,1754290395555,-400.0,0.00047945,120]
[377208691,1754290395565,-1876.25,0.00047945,120]
[377208692,1754290395574,-798.01,0.00047945,120]
[377208693,1754290395584,-5826.35,0.00047945,120]
[377208694,1754290395594,-400.0,0.00047945,120]
[377208695,1754290395603,-896.35,0.00047945,120]
[377208696,1754290395614,-556.22,0.00047945,120]
[377208697,1754290395624,-400.0,0.00047945,120]
[377208698,1754290395635,-1601.38,0.00047945,120]
[377208699,1754290395645,-400.0,0.00047945,120]
[377208700,1754290395654,-607.9,0.00047945,120]
[377208701,1754290395663,-2561.99,0.00047945,14]
[377208702,1754290395674,-400.0,0.00047945,120]
[377208703,1754290395683,-655.52,0.00047945,120]
[377208704,1754290395693,-451.2,0.00047945,120]
[377208705,1754290395703,-400.0,0.00047945,120]
[377208706,1754290395715,-1166.35,0.00047945,120]
[377208707,1754290395725,-485.14,0.00047945,120]
[377208708,1754290395734,-400.0,0.00047945,120]
[377208709,1754290395744,-838.64,0.00047945,120]
[377208710,1754290395754,-456.28,0.00047945,120]
[377208711,1754290395764,-1368.58,0.00047945,120]
[377208712,1754290395774,-1792.8,0.00047945,120]
[377208713,1754290395785,-517.54,0.00047945,120]
[377208714,1754290395801,-660.82,0.00047945,120]
[377208715,1754290395815,-400.0,0.00047945,120]
[377208716,1754290395825,-1364.42,0.00047945,120]
[377208717,1754290395835,-1118.49,0.00047945,120]
[377208718,1754290395844,-400.0,0.00047945,120]
[377208719,1754290395853,-89408.18,0.00047945,120]
[377208720,1754290395863,-400.0,0.00047945,120]
[377208721,1754290395872,-606.91,0.00047945,120]
[377208722,1754290395882,-400.0,0.00047945,120]
[377208723,1754290395892,-1091.37,0.00047945,120]
[377208724,1754290395901,-842.24,0.00047945,120]
[377208725,1754290395912,-400.0,0.00047945,120]
[377208726,1754290395922,-1407.22,0.00047945,120]
[377208727,1754290395932,-400.0,0.00047945,120]
[377208728,1754290395942,-1114.29,0.00047945,120]
[377208729,1754290395954,-400.0,0.00047945,120]
[377208730,1754290395964,-641.89,0.00047945,120]
[377208731,1754290395975,-442.8,0.00047945,120]
[377208732,1754290395985,-429.17,0.00047945,120]
[377208733,1754290395996,-400.0,0.00047945,120]
[377208734,1754290396006,-400.0,0.00047945,120]
[377208735,1754290396016,-681.25,0.00047945,120]
[377208736,1754290396026,-3089.74,0.00047945,120]
[377208737,1754290396036,-517.08306431,0.00047945,120]
[377208738,1754290396046,-400.0,0.00047945,120]
[377208739,1754290396056,-735.44,0.00047945,120]
[377208740,1754290396065,-1045.87,0.00047945,120]
[377208741,1754290396075,-400.0,0.00047945,120]
[377208742,1754290396085,-512.16,0.00047945,120]
[377208743,1754290396094,-7487.46,0.00047945,120]
[377208744,1754290396104,-1620.5,0.00047945,120]
[377208745,1754290396113,-1146.08,0.00047945,120]
[377208746,1754290396123,-400.0,0.00047945,120]
[377208747,1754290396132,-1108.92,0.00047945,120]
[377208748,1754290396142,-706.49,0.00047945,120]
[377208749,1754290396151,-997.82,0.00047945,120]
[377208750,1754290396162,-4191.81,0.00047945,120]
[377208751,1754290396172,-442.74,0.00047945,120]
[377208752,1754290396182,-471.63,0.00047945,120]
[377208753,1754290396191,-400.0,0.00047945,120]
[377208754,1754290396201,-451.29,0.00047945,120]
[377208755,1754290396210,-400.0,0.00047945,120]
[377208756,1754290396220,-400.0,0.00047945,120]
[377208757,1754290396230,-400.0,0.00047945,120]
[377208758,1754290396240,-400.0,0.00047945,120]
[377208759,1754290396254,-2538.55,0.00047945,120]
[377208760,1754290396264,-485.24,0.00047945,120]
[377208761,1754290396274,-1069.88,0.00047945,120]
[377208762,1754290396284,-400.0,0.00047945,120]
[377208763,1754290396294,-429.54,0.00047945,120]
[377208764,1754290396304,-803.05,0.00047945,120]
[377208765,1754290396313,-400.0,0.00047945,120]
[377208766,1754290396323,-400.0,0.00047945,120]
[377208767,1754290396333,-643.0,0.0004795,2]
[377208768,1754290396342,-150.0,0.00047968,7]
[377208769,1754290396352,-150.0,0.00047971,7]
[377208770,1754290396362,-150.0,0.00047973,7]
[377208771,1754290396372,-2972.79980387,0.0004798,120]
[377208772,1754290396381,-150.0,0.00047982,7]
[377208773,1754290396391,-150.0,0.00047988,7]
[377208774,1754290396401,-500.0,0.00047989,30]
[377208775,1754290396411,-151.0,0.00047999,14]
[377208776,1754290396421,-151.0,0.00047999,14]
[377208777,1754290396430,-151.0,0.00047999,14]
[377208778,1754290396443,-151.0,0.00047999,14]
[377208779,1754290396452,-151.0,0.00047999,14]
[377208780,1754290396463,-151.0,0.00047999,14]
[377208781,1754290396472,-157.499618,0.00047999,14]
[377208782,1754290396482,-151.0,0.00047999,14]
[377208783,1754290396491,-1007.17980342,0.00047999,2]
[377208784,1754290396501,-248.599115,0.00047999,14]
[377208785,1754290396511,-400.0,0.00047999,120]
[377208786,1754290396521,-236.97885768,0.00047999,7]
[377208787,1754290396531,-156.06002494,0.00047999,30]
[377208788,1754290396541,-186.242691,0.00047999,14]
[377208789,1754290396550,-186.242691,0.00047999,14]
[377208790,1754290396560,-165.856498,0.00047999,14]
[377208791,1754290396569,-151.0,0.00047999,14]
[377208792,1754290396579,-512.26022641,0.00047999,30]
[377208793,1754290396591,-50000.0,0.00048,48]
[377208794,1754290396601,-234630.5212911,0.00048,120]
[377208795,1754290398152,-150.0,0.0004559,2]
[377208796,1754290398163,-552.28202496,0.00045746,2]
[377208797,1754290398174,-703.88885535,0.00045901,2]
[377208798,1754290398183,-151.0,0.00046047,7]
[377208799,1754290398193,-855.49568573,0.00046057,2]
[377208800,1754290398203,-1007.10251611,0.00046212,2]
[377208801,1754290398212,-1158.70934649,0.00046368,2]
[377208802,1754290398222,-1310.31617688,0.00046523,2]
[377208803,1754290398232,-76.31879823,0.00046575,120]
[377208804,1754290399128,-151.006603,0.00043613,10]
[377208805,1754290405306,-153.37918463,0.00040418,30]
[377208806,1754290412114,-5.00081537,0.00040418,30]
[377208807,1754290412137,-145.99918463,0.00040525,2]
[377208808,1754290415403,-5.00081537,0.00040525,2]
[377208809,1754290415427,-151.0,0.00041173,5]
[377208810,1754290415451,-59.98758463,0.00043613,10]
[377208811,1754290418204,-290.26231547,0.00043613,10]
[377208812,1754290423212,-151.0,0.00042508,5]
[377208813,1754290423237,-2.37918463,0.00043613,10]
[377208814,1754290429056,-151.0,0.00043588,5]
[377208815,1754290429079,-1.36431227,0.00043613,10]
[377208816,1754290429101,-142.77045417,0.0004446,30]
[377208817,1754290434023,-15.60954583,0.0004446,30]
[377208818,1754290434046,-151.0,0.00044659,7]
[377208819,1754290434068,-68.68128483,0.00045595,2]
[377208820,1754290441071,-81.31871517,0.00045595,2]
[377208821,1754290441094,-85.19656337,0.00045748,2]
[377208822,1754290441964,-200.0,0.00041096,20]
[377208823,1754290441987,-90.26231547,0.00045748,2]
[377208824,1754290442659,-35.96617016,0.00045748,2]
[377208825,1754290442681,-151.0,0.00045815,7]
[377208826,1754290442704,-35.30638139,0.00045853,7]
[377208827,1754290444217,-115.69361861,0.00045853,7]
[377208828,1754290444240,-179.44114783,0.00046367,5]
[377208829,1754290445166,-277.59211348,0.00046367,5]
[377208830,1754290445829,-227.32076712,0.00046367,5]
[377208831,1754290447037,-211.425049,0.00045751,2]
[377208832,1754290447065,-29.50291548,0.00046367,5]
[377208833,1754290448474,-195.14305609,0.00046367,5]
[377208834,1754290448498,-78.26483043,0.00046374,5]
[377208835,1754290449937,-221.73516957,0.00046374,5]
[377208836,1754290449962,-12.54889199,0.00046475,120]
[377208837,1754290452595,-435.75658622,0.00045205,120]
[377208838,1754290453561,-209.57145819,0.00045205,120]
[377208839,1754290454150,-160.30833245,0.00045205,120]
[377208840,1754290456526,-235.29083066,0.00045205,120]
[377208947,1754291124347,172.25,0.00013699,2]
[377209058,1754291433177,-283.9,0.00028437,3]
[377209059,1754291433186,-153.00933818,0.00031281,120]
[377209060,1754291433197,-298.30999983,0.00031281,120]
[377209061,1754291433208,-731.65827864,0.00031281,120]
[377209062,1754291433235,-1310.37238335,0.00031281,120]
[377209063,1754291433246,-283.9,0.00034004,6]
[377209064,1754291433255,-157.95,0.00035292,2]
[377209065,1754291433265,-348.96063,0.00035888,30]
[377209066,1754291433275,-152.0,0.00035915,3]
[377209067,1754291433284,-348.96063,0.00036088,30]
[377209068,1754291433294,-251.5,0.00036217,120]
[377209069,1754291433304,-220.13491,0.00036217,120]
[377209070,1754291433314,-320.72669391,0.00036217,120]
[377209071,1754291433324,-317.13523982,0.00036217,120]
[377209072,1754291433334,-348.96063,0.00036288,30]
[377209073,1754291433343,-348.96063,0.00036488,30]
[377209074,1754291433353,-348.96063,0.00036688,30]
[377209075,1754291433363,-152.0,0.00036758,4]
[377209076,1754291433372,-348.96063,0.00036888,30]
[377209077,1754291433381,-1163.2021,0.00036888,7]
[377209078,1754291433391,-348.96063,0.00037088,30]
[377209079,1754291433401,-214.27,0.00037112,7]
[377209080,1754291433410,-348.96063,0.00037288,30]
[377209081,1754291433419,-348.96063,0.00037488,30]
[377209082,1754291433429,-343.813758,0.00037499,2]
[377209083,1754291433439,-152.0,0.000376,5]
[377209084,1754291433448,-348.96063,0.00037688,30]
[377209085,1754291433458,-348.96063,0.00037888,30]
[377209086,1754291433468,-348.96063,0.00038088,30]
[377209087,1754291433478,-348.96063,0.00038288,30]
[377209088,1754291433488,-152.0,0.00038443,6]
[377209089,1754291433498,-348.96063,0.00038488,30]
[377209090,1754291433511,-348.96063,0.00038688,30]
[377209091,1754291433522,-157.95,0.00038822,2]
[377209092,1754291433531,-348.96063,0.00039088,30]
[377209093,1754291433541,-152.0,0.00039286,7]
[377209094,1754291433551,-348.96063,0.00039288,30]
[377209095,1754291433560,-348.96063,0.00039488,30]
[377209096,1754291433570,-283.9,0.0003957,15]
[377209097,1754291433579,-348.96063,0.00039688,30]
[377209098,1754291433590,-317.1,0.0003975,2]
[377209099,1754291433600,-348.96063,0.00039888,30]
[377209100,1754291433609,-403.20089,0.0004,120]
[377209101,1754291433619,-315.19,0.00040077,2]
[377209102,1754291433628,-348.96063,0.00040088,30]
[377209103,1754291433638,-152.0,0.00040128,8]
[377209104,1754291433647,-348.96063,0.00040288,30]
[377209105,1754291433657,-348.96063,0.00040488,30]
[377209106,1754291433667,-280.0,0.00040576,30]
[377209107,1754291433677,-348.96063,0.00040688,30]
[377209108,1754291433687,-512.0,0.00040771,10]
[377209109,1754291433696,-348.96063,0.00040888,30]
[377209110,1754291433706,-152.0,0.00040971,9]
[377209111,1754291433715,-200.0,0.00041,7]
[377209112,1754291433725,-169.0,0.00041,90]
[377209113,1754291433735,-348.96063,0.00041088,30]
[377209114,1754291433744,-200.0,0.00041096,20]
[377209115,1754291433753,-348.96063,0.00041288,30]
[377209116,1754291433763,-1293.41,0.00041386,2]
[377209117,1754291433772,-317.1,0.0004148,120]
[377209118,1754291433781,-348.96063,0.00041488,30]
[377209119,1754291433791,-177.0,0.00041641,2]
[377209120,1754291433801,-348.96063,0.00041688,30]
[377209121,1754291433810,-177.0,0.00041745,2]
[377209122,1754291433820,-152.0,0.00041814,10]
[377209123,1754291433830,-177.0,0.00041849,2]
[377209124,1754291433842,-348.96063,0.00041888,30]
[377209125,1754291433853,-177.0,0.00041953,2]
[377209126,1754291433862,-177.0,0.00042058,2]
[377209127,1754291433872,-157.95,0.00042351,30]
[377209128,1754291433882,-152.0,0.00042656,11]
[377209129,1754291433892,-199.13762373,0.00042776,28]
[377209130,1754291433902,-512.0,0.00042907,10]
[377209131,1754291433911,-317.1,0.0004321,120]
[377209132,1754291433921,-4137.0,0.00043253,2]
[377209133,1754291433930,-5017.25859329,0.00043253,2]
[377209135,1754291438306,-773.89940671,0.00043253,2]
[377209136,1754291438317,-1169.0,0.00043253,2]
[377209137,1754291438327,-301.33,0.00043389,30]
[377209138,1754291438337,-1635.74,0.00043389,30]
[377209139,1754291438348,-347.71,0.00043389,30]
[377209140,1754291438357,-501.4006779,0.0004346,120]
[377209141,1754291438367,-300.71,0.00043468,30]
[377209142,1754291438378,-172.88,0.00043468,30]
[377209143,1754291438387,-150.0,0.00043468,30]
[377209144,1754291438397,-151.39,0.00043468,30]
[377209145,1754291438406,-537.09,0.00043468,30]
[377209146,1754291438416,-150.0,0.00043468,30]
[377209148,1754291438426,-345.76,0.00043468,30]
[377209150,1754291438435,-150.0,0.00043491,120]
[377209152,1754291438444,-152.0,0.00043499,12]
[377209154,1754291438454,-283.02125,0.000438,120]
[377209156,1754291438464,-1000.0,0.00043912,2]
[377209158,1754291438473,-197.37,0.00043991,2]
[377209160,1754291438483,-157.0,0.00044,30]
[377209162,1754291438492,-12221.12,0.00044014,2]
[377209164,1754291438502,-614.27,0.00044243,30]
[377209166,1754291438512,-387.58,0.00044243,2]
[377209168,1754291438521,-22195.30982761,0.00044278,120]
[377209177,1754291438730,-395.02724689,0.00044278,120]
[377209179,1754291438742,-582.96009681,0.00044278,120]
[377209322,1754291440255,-4490.0,0.00044278,120]
[377209358,1754291440608,-713.74300005,0.00044278,120]
[377209409,1754291444690,-288.20392971,0.00044278,120]
[377209497,1754292158743,1322.54978906,0.00015,2]
[377209499,1754292171642,168.64,0.00013699,2]
[377209503,1754292184398,1500.0,0.00015,3]
[377209534,1754292308944,41197.50021094,0.00019,2]
[377209535,1754292308973,49845.48,0.00019,2]
[377209536,1754292309003,49690.04,0.00019,2]
[377209537,1754292309033,10000.0,0.00019,2]
[377209538,1754292309071,50000.0,0.00019,2]
[377209539,1754292310085,-235.41837003,0.00019,2]
[377209540,1754292313100,-373.65275205,0.00019,2]
[377209560,1754292604553,1200.0,0.00018999,2]
[377209576,1754292632542,-9759.35162696,0.00019,2]
[377209577,1754292632555,-1246.24991427,0.00019,2]
[377209578,1754292632566,-3148.97995,0.00019,2]
[377209579,1754292632656,-1104.63806493,0.00019,2]
[377209580,1754292632668,-5356.31732994,0.00019,2]
[377209581,1754292632755,-1375.42504389,0.00019,2]
[377209582,1754292632767,-1661.6087598,0.00019,2]
[377209724,1754292638396,-522.9588,0.00019,2]
[377209725,1754292638492,-371.49343738,0.00019,2]
[377209726,1754292638504,-1341.72204,0.00019,2]
[377209727,1754292638516,-19806.59031622,0.00019,2]
[377209728,1754292638615,-896.5462014,0.00019,2]
[377209729,1754292638627,-5604.5,0.00019,2]
[377209730,1754292638639,-811.899985,0.00019,2]
[377209741,1754292640461,-2739.20187028,0.00019,2]
[377209742,1754292640474,-28785.94417477,0.00019,2]
[377209743,1754292640483,-1680.0,0.0002081,2]
[377209744,1754292640494,-1459.07,0.000209,2]
[377209745,1754292640504,-336.22399346,0.00022145,2]
[377209746,1754292640514,-1046.0,0.00022793,2]
[377209747,1754292640525,-278.82927077,0.000229,8]
[377209748,1754292640535,-278.82927056,0.00023728,9]
[377209749,1754292640545,-278.82927056,0.00024555,11]
[377209750,1754292640554,-278.82927056,0.00025383,13]
[377209751,1754292640564,-278.82927056,0.0002621,14]
[377209752,1754292640574,-278.82927056,0.00027038,16]
[377209753,1754292640583,-278.82927056,0.00027866,17]
[377209754,1754292640593,-2500.0,0.00027945,7]
[377209755,1754292640603,-150.000001,0.00028,60]
[377209756,1754292640613,-500.0,0.00028339,2]
[377209757,1754292640623,-213.0,0.00028437,3]
[377209758,1754292640637,-278.82927056,0.00028693,19]
[377209759,1754292640647,-278.82927056,0.00029521,21]
[377209760,1754292640657,-799.999999,0.0003,2]
[377209761,1754292640667,-278.82927056,0.00030348,22]
[377209762,1754292640676,-1565.10302549,0.00031,2]
[377209763,1754292640686,-278.82927056,0.00031176,24]
[377209764,1754292640696,-859.079999,0.0003121,2]
[377209765,1754292640706,-278.82927056,0.00032003,26]
[377209766,1754292640715,-278.82927056,0.00032831,27]
[377209767,1754292640725,-278.82927056,0.00033659,29]
[377209768,1754292640734,-213.0,0.00034004,6]
[377209769,1754292640744,-278.82927056,0.00034486,30]
[377209770,1754292640753,-462.4734684,0.00035,12]
[377209771,1754292640763,-278.82927056,0.00035314,32]
[377209772,1754292640772,-278.82927056,0.00036141,34]
[377209773,1754292640783,-8071.61462483,0.00036188,120]
[377209774,1754292640792,-278.82927056,0.00036969,35]
[377209775,1754292640802,-280.0,0.000374,30]
[377209776,1754292640812,-361.84,0.00037738,2]
[377209777,1754292640822,-278.82927056,0.00037797,37]
[377209778,1754292640832,-1275.87,0.00038075,2]
[377209779,1754292640842,-278.82927056,0.00038624,39]
[377209780,1754292640851,-23900.0,0.0003864,2]
[377209781,1754292640861,-513.0,0.00038644,2]
[377209782,1754292640871,-5510.0,0.000393,5]
[377209783,1754292640881,-278.82927056,0.00039452,40]
[377209784,1754292640891,-361.84,0.00039469,2]
[377209785,1754292640900,-213.0,0.0003957,15]
[377209786,1754292640910,-157.96,0.00039965,2]
[377209787,1754292640920,-1000.0,0.0004,120]
[377209788,1754292640929,-799.999999,0.0004,30]
[377209789,1754292640939,-200.0,0.00040065,2]
[377209790,1754292640949,-278.82927056,0.00040279,42]
[377209791,1754292640959,-513.0,0.0004078,10]
[377209792,1754292640968,-200.0,0.00041096,20]
[377209793,1754292640978,-1200.0,0.000411,2]
[377209794,1754292640987,-278.82927056,0.00041107,44]
[377209795,1754292640997,-391.0,0.0004114,30]
[377209796,1754292641007,-361.84,0.00041199,120]
[377209797,1754292641017,-440.71,0.00041244,2]
[377209798,1754292641027,-1000.0,0.00041402,120]
[377209799,1754292641036,-2591.75,0.00041821,120]
[377209800,1754292641046,-278.82927056,0.00041934,45]
[377209801,1754292641055,-1000.0,0.00041959,2]